Cogmind - Beta 16 @@@ ROGUE MODE // 2025.12.01 @ 15:47:04 Player: LJ Result: Destroyed by QH-8LX(j) with Overtuned Pulse Rifle Performance ------------- Evolutions (0) 0 Regions Visited (3) 600 Robots Destroyed (0) 0 Value Destroyed (0) 0 Prototype IDs (7) 140 Alien Tech Used (0) 0 Bonus (800) 800 TOTAL SCORE: 1540 Bonus ------- Registered with UFD 300 Met Optimus in HQ 500 Cogmind --------- Core Integrity 0/250 Matter 300/300 Energy 100/100 System Corruption 0% Temperature Cool (12) Movement Core (150) Ox2 Location -7/Scraptown Parts ------- > --- POWER (1) -------- (None) > --- PROPULSION (2) --- (None) > --- UTILITY (2) ------ Small Storage Unit > --- WEAPON (2) ------- Companion Sword > --- INVENTORY (8) ---- Ion Engine Aluminum Leg Aluminum Leg Small Laser Light Assault Rifle Light Cannon Grenade Launcher DRS Beacon (Ready) Peak State ------------ > --- POWER ------------ Ion Engine > --- PROPULSION ------- Overtuned Titanium Leg Makeshift Leg > --- UTILITY ---------- Small Storage Unit > --- WEAPON ----------- Companion Sword > --- INVENTORY -------- Ion Engine Scrap Suit Small Laser Light Assault Rifle Light Cannon Grenade Launcher DRS Beacon [Rating: 16] Favorites ----------- Power Ion Engine Engine Ion Engine Propulsion Aluminum Leg Leg Aluminum Leg Utility Small Storage Unit Storage Small Storage Unit Weapon Light Assault Rifle Ballistic Gun Light Assault Rifle Slashing Weapon Companion Sword Build | -11 -10 -10 -7 ------- Run | Yrd Mat Sub Scr Slots Evolved . | . . . . Power . | . . . . Propulsion . | . . . . Utility . | . . . . Weapon . | . . . . Parts Attached 9 | 6 . . 3 Power 1 | 1 . . . Engine 1 | 1 . . . Core . | . . . . Reactor . | . . . . Propulsion 4 | 2 . . 2 Treads . | . . . . Leg 4 | 2 . . 2 Wheel . | . . . . Hover . | . . . . Flight . | . . . . Utility 1 | 1 . . . Device . | . . . . Storage 1 | 1 . . . Processor . | . . . . Hackware . | . . . . Protection . | . . . . Artifact . | . . . . Weapon 3 | 2 . . 1 Energy Gun . | . . . . Energy Cannon . | . . . . Ballistic Gun 2 | 2 . . . Ballistic Cannon . | . . . . Launcher . | . . . . Special Weapon . | . . . . Impact Weapon . | . . . . Slashing Weapon 1 | . . . 1 Piercing Weapon . | . . . . Special Melee Weapon . | . . . . Unidentified Prototypes 1 | . . . 1 Parts Lost 3 | . . . 3 Power 1 | . . . 1 Propulsion 2 | . . . 2 Utility . | . . . . Weapon . | . . . . Highest Loss Streak 3 | . . . 3 To Critical Strikes . | . . . . Average Backups 6 | 2 5 7 6 Power . | . 1 1 1 Propulsion 1 | . 2 2 1 Utility . | . . . . Weapon 3 | . 2 4 4 Tool/Special . | . . . . Unused Backups 8 | . . . 8 Power 1 | . . . 1 Propulsion 2 | . . . 2 Utility 1 | . . . 1 Weapon 4 | . . . 4 Tool/Special . | . . . . Average Slot Usage (%) 80 | . 85 85 78 Engine 13 | . 14 14 13 Leg 27 | . 28 28 27 Storage 14 | . 14 14 14 Ballistic Gun 19 | . 28 28 18 Slashing Weapon 4 | . . . 4 Peak Build Rating 16 | 6 6 6 16 Average Rating 7 | 4 6 6 8 On Entrance 4 | . 6 6 6 Avg Prop Armor Cover (%) 12 | . . . 12 Naked Turns . | . . . . Heaviest Build 15 | 12 12 12 15 Greatest Support 39 | 20 20 20 39 Greatest Overweight (x) 4 | . . . 4 Average Overweight (x) . | . . . . Largest Inventory Capacity 8 | 8 8 8 8 Average Capacity 7 | 6 8 8 8 Most Carried 8 | 4 7 7 8 Average Carried 7 | 2 5 7 7 Final Capacity 8 | 8 8 8 8 Final Carried 8 | 4 7 7 8 Class Distribution -------------------- 100% | Mutant Dominant Class ---------------- Mutant | -10/Materials Mutant | -10/Subcaves Mutant | -7/Scraptown Resources | -11 -10 -10 -7 ----------- Run | Yrd Mat Sub Scr Matter Collected 290 | 197 32 31 30 Remotely . | . . . . Salvage Created . | . . . . Parts . | . . . . Haulers Intercepted . | . . . . Recyclers Shooed . | . . . . Parts Field Recycled . | . . . . Retrieved Matter . | . . . . Parts Self-Destructed . | . . . . Prevented . | . . . . Parts Restored . | . . . . Kills | -11 -10 -10 -7 ------- Run | Yrd Mat Sub Scr Combat Hostiles Destroyed . | . . . . Classes Destroyed . | . . . . Best Kill Streak . | . . . . Combat Bots Only . | . . . . Max Kills in Single Turn . | . . . . Gunslinging . | . . . . Exploded . | . . . . Melee . | . . . . Uniques/NPCs Destroyed . | . . . . Combat | -11 -10 -10 -7 -------- Run | Yrd Mat Sub Scr Hostile Shots Fired 50 | . . . 50 Missed 16 | . . . 16 Hits 34 | . . . 34 Melee 13 | . . . 13 Projectile 21 | . . . 21 Critical Strikes 1 | . . . 1 Damage Taken 674 | . . . 674 Core 257 | . . . 257 Absorbed by Shields . | . . . . Core Remaining (%) 100 | 100 . . . Volleys Fired . | . . . . Largest . | . . . . Hottest . | . . . . Shots Fired . | . . . . Gun . | . . . . Cannon . | . . . . Launcher . | . . . . Special . | . . . . Kinetic . | . . . . Thermal . | . . . . Explosive . | . . . . Electromagnetic . | . . . . Robot Hit Streak . | . . . . Robot Miss Streak . | . . . . Penetration Max . | . . . . Secondary Targets . | . . . . Shots Hit Robots 10 | . . . 10 Core Hits 1 | . . . 1 Critical Kills . | . . . . Critical Parts Destroyed . | . . . . Critical Strikes 2 | . . . 2 Melee Attacks 13 | . . . 13 Impact . | . . . . Slashing 13 | . . . 13 Piercing . | . . . . Sneak Attacks . | . . . . Combat Hostiles . | . . . . Follow-up Attacks . | . . . . Damage Inflicted 216 | . . . 216 Guns . | . . . . Cannons . | . . . . Explosions . | . . . . Melee 216 | . . . 216 Ramming . | . . . . Kinetic . | . . . . Thermal . | . . . . Explosive . | . . . . Electromagnetic . | . . . . Impact . | . . . . Slashing 216 | . . . 216 Piercing . | . . . . Highest Corruption . | . . . . Average Corruption . | . . . . Corruption Purged . | . . . . Corruption Blocked . | . . . . Overload Shots . | . . . . Overflow Damage 16 | . . . 16 Projectiles . | . . . . Explosions . | . . . . Melee 16 | . . . 16 Knockbacks . | . . . . Impact . | . . . . Kinetic . | . . . . Secondary . | . . . . Self-Inflicted Damage . | . . . . Shots . | . . . . Rammed . | . . . . Targets Rammed . | . . . . Kicked . | . . . . Crushed . | . . . . Highest Temperature 12 | . . . 12 Average Temperature 12 | . . . 12 Received Heat Transfer 289 | . . . 289 Siege Activations . | . . . . Martial Activations . | . . . . Shielding Activations . | . . . . Robots Disrupted . | . . . . Combat Hostiles . | . . . . Robots Corrupted . | . . . . Combat Hostiles . | . . . . Parts Fried . | . . . . Impact Corruptions . | . . . . Robots Melted . | . . . . Combat Hostiles . | . . . . Parts Melted . | . . . . Heat Transferred . | . . . . Parts Sabotaged . | . . . . Parts Stolen 1 | . . . 1 Parts Stripped . | . . . . Power Chain Reactions . | . . . . Alert | -11 -10 -10 -7 ------- Run | Yrd Mat Sub Scr Maximum Alert Level . | . . . . Low Security (%) 100 | 100 100 . . Level 1 . | . . . . Level 2 . | . . . . Level 3 . | . . . . Level 4 . | . . . . Level 5 . | . . . . High Security . | . . . . Max Security . | . . . . Peak Influence . | . . . . Initial . | . . . . Average . | . . . . Influence Increases . | . . . . Influence Decreases . | . . . . Squads Dispatched 1 | . 1 . . Investigation 1 | . 1 . . Extermination . | . . . . Reinforcement . | . . . . Assault . | . . . . Garrison . | . . . . Intercept . | . . . . Searches Triggered . | . . . . Construction Impeded . | . . . . Haulers Reinforced . | . . . . Active Scanning Responses . | . . . . Cargo Convoy Interrupts . | . . . . Stealth | -11 -10 -10 -7 --------- Run | Yrd Mat Sub Scr Distress Signals . | . . . . Communications Jammed . | . . . . Distress Signals . | . . . . Times Spotted 13 | . . . 13 Peak Tracking Total 4 | . . . 4 Tactical Retreats 1 | . . . 1 Traps | -11 -10 -10 -7 ------- Run | Yrd Mat Sub Scr Traps Triggered . | . . . . Indirectly . | . . . . Trap Hack Attempts . | . . . . Triggered . | . . . . Disarmed . | . . . . Reprogrammed . | . . . . Reused . | . . . . Traps Extracted . | . . . . Installed . | . . . . Triggered . | . . . . Machines | -11 -10 -10 -7 ---------- Run | Yrd Mat Sub Scr Machines Disabled . | . . . . Max in Single Turn . | . . . . Machines Repaired . | . . . . Machines Dismantled . | . . . . Machines Sabotaged . | . . . . Overloaded Fab Kills . | . . . . Hacking | -11 -10 -10 -7 --------- Run | Yrd Mat Sub Scr Machines Accessed 8 | . . . 8 Terminals . | . . . . Fabricators . | . . . . Repair Stations . | . . . . Recycling Units . | . . . . Scanalyzers . | . . . . Garrison Access . | . . . . Total Hacks 44 | . . . 44 Successful 44 | . . . 44 Failed . | . . . . Catastrophic . | . . . . Database Lockouts . | . . . . Manual 2 | . . . 2 Terminals . | . . . . Fabricators . | . . . . Repair Stations . | . . . . Recycling Units . | . . . . Scanalyzers . | . . . . Garrison Access . | . . . . Terminal Hacks 44 | . . . 44 Record 43 | . . . 43 Open Door 1 | . . . 1 Fabricator Hacks . | . . . . Repair Station Hacks . | . . . . Recycling Unit Hacks . | . . . . Scanalyzer . | . . . . Garrison Access Hacks . | . . . . Unauthorized Hacks . | . . . . Terminals . | . . . . Fabricators . | . . . . Repair Stations . | . . . . Recycling Units . | . . . . Scanalyzers . | . . . . Garrison Access . | . . . . Data Cores Recovered . | . . . . Used . | . . . . Hacking Detections . | . . . . Full Trace Events . | . . . . Feedback Events . | . . . . Feedback Blocked . | . . . . Robot Schematics Acquired . | . . . . Robots Built . | . . . . Authchips . | . . . . Time . | . . . . Total Robot Build Rating . | . . . . Part Schematics Acquired . | . . . . Parts Built . | . . . . Authchips . | . . . . Time . | . . . . Total Part Build Rating . | . . . . Part Studies Acquired . | . . . . Parts Repaired . | . . . . Time . | . . . . Parts Recycled . | . . . . Recycled Matter . | . . . . Retrieved Matter . | . . . . Retrieved Components . | . . . . Parts Scanalyzed . | . . . . Part Schematics Acquired . | . . . . Parts Damaged . | . . . . Bothacking | -11 -10 -10 -7 ------------ Run | Yrd Mat Sub Scr Used RIF Installer . | . . . . Robots Hacked . | . . . . Non-combat . | . . . . Combat . | . . . . Robot Hacks Applied . | . . . . Relay Couplers Released . | . . . . Fabnet Peak Effective % . | . . . . Robots Rewired . | . . . . Allies Hacked . | . . . . Hacks Repelled . | . . . . Allies | -11 -10 -10 -7 -------- Run | Yrd Mat Sub Scr Total Allies . | . . . . Largest Group . | . . . . Highest-Rated Group . | . . . . Highest-Rated Ally . | . . . . Total Orders . | . . . . Ally Attacks . | . . . . Total Damage . | . . . . Kills . | . . . . Allies Corrupted . | . . . . Allies Melted 3 | . . . 3 Intel | -11 -10 -10 -7 ------- Run | Yrd Mat Sub Scr Active Infowar (turns) . | . . . . Robot Analysis Total . | . . . . Derelict Logs Recovered . | . . . . Drone Launches . | . . . . Drone Recoveries . | . . . . Exploration | -11 -10 -10 -7 ------------- Run | Yrd Mat Sub Scr Turns Passed 2086 | 87 117 221 1661 Spaces Moved 1663 | 65 95 185 1318 Core 18 | 4 . . 14 Treads . | . . . . Legs 1645 | 61 95 185 1304 Wheels . | . . . . Hover . | . . . . Flight . | . . . . Fastest Speed 50 | 50 120 120 120 Average Speed 121 | 115 120 120 122 Slowest Speed 250 | 120 120 120 250 Overloaded Moves . | . . . . Propulsion Burnouts . | . . . . Robots Hopped . | . . . . Potential Cave-ins . | . . . . Cave-ins Triggered . | . . . . Exploration Rate (%) 26 | 4 28 12 62 Regions Visited 3 Branch Regions 2 Pre-discovered Areas . | . . . . Known Exits Taken . | . . . . Unknown Exits Taken 3 | 1 1 1 . Scrap Searched 3 | . . . 3 Spaces Dug . | . . . . Terrain Destroyed . | . . . . Melee . | . . . . Projectile . | . . . . AOE . | . . . . Terrain Rammed . | . . . . Walls Destroyed . | . . . . Machines Disabled . | . . . . Actions | -11 -10 -10 -7 --------- Run | Yrd Mat Sub Scr Total 1704 | 74 98 184 1348 Wait 1 | . 1 . . Move 1660 | 64 94 184 1318 Hop . | . . . . Pick Up 12 | 4 3 . 5 Fast Attach 10 | 6 . . 4 Attach . | . . . . Detach . | . . . . Swap . | . . . . Drop 8 | . . . 8 Fire . | . . . . Melee 13 | . . . 13 Ram . | . . . . Kick . | . . . . Crush . | . . . . Escape Stasis . | . . . . Rewire . | . . . . Trap . | . . . . Miscellaneous . | . . . . Route ------- -11/Scrapyard -10/Materials (discovered 2 exits: [*Mat] / [*Sub]) -10/Subcaves (discovered 2 exits: [*Mat] / *Scr) -7/Scraptown (discovered 2 exits: [*Fac x2]) History --------- Turn | Location | Event 2 | -11/Scrapyard | Met Revision 17 5 | -11/Scrapyard | Discovered new exit (range 15) 88 | -11/Scrapyard | Entered Materials 89 | -10/Materials | Met a group of wandering Federalists 179 | -10/Materials | Discovered new exit (range 16) 193 | -10/Materials | Discovered new exit (range 10) 205 | -10/Materials | Entered Subcaves 205 | -10/Subcaves | Accompanied by 2 allies 206 | -10/Subcaves | Continued accompanying wandering Federalists (4) 247 | -10/Subcaves | Discovered new exit (range 9) 317 | -10/Subcaves | Build established: Mutant 418 | -10/Subcaves | Wandering Federalist uncovered a shortcut to Scraptown 426 | -10/Subcaves | Entered Scraptown 830 | -7/Scraptown | Discovered new exit (range 5) 1176 | -7/Scraptown | Visited Cyclists 1221 | -7/Scraptown | Visited UFD Registry 1223 | -7/Scraptown | Registered with UFD as "Macetank" 1247 | -7/Scraptown | Entered Cyclist Reading Room 1326 | -7/Scraptown | Heard Great Nut preacher, LISTEN AND RECITE! 1416 | -7/Scraptown | Visited Derelict Rescue Squad 1428 | -7/Scraptown | Found DRS Beacon 1470 | -7/Scraptown | Visited Sword Containment 1494 | -7/Scraptown | Found Prototype Slashing Weapon 1494 | -7/Scraptown | Identified Companion Sword 1568 | -7/Scraptown | Found Scrap Suit 1624 | -7/Scraptown | Discovered new exit (range 5) 1697 | -7/Scraptown | Visited Cartography Club 1763 | -7/Scraptown | Visited Infowarlord's Domain 1800 | -7/Scraptown | Visited DA-N13 Charitable Foundation 1809 | -7/Scraptown | Found DCF Scrap (28 items) 1914 | -7/Scraptown | Met Optimus 1914 | -7/Scraptown | Accepted into 0bPrime 2007 | -7/Scraptown | Civil war broke out across Scraptown 2071 | -7/Scraptown | Core integrity fell below 50% 2080 | -7/Scraptown | Core integrity fell below 20% 2087 | -7/Scraptown | Destroyed by QH-8LX(j) with Overtuned Pulse Rifle Last Messages --------------- LG-YWP(E) suffers critical hit (Burn). LG-YWP(E) overheating. PM-PBH(c) heat damages Gravmag System. HV Slug penetrates ED-AHJ(j). ED-AHJ(j) suffers critical hit (Destroy). ED-AHJ(j) destroyed. HV Slug penetrates Machine. HV Slug penetrates Wall. LG-YWP(E) destroyed. Ion Engine destroyed. Ovr. Titanium Leg recovered from malfunction. Ovr. Titanium Leg destroyed. Critical hit (Burn: +50). V2-MAQ(j) heat short circuits Ovr. Pulse Rifle. Mak. Leg destroyed. V2-MAQ(j) cannibalizes Ovr. Titanium Leg to repair Ovr. Titanium Leg. QH-8LX(j) heat damages Lgt. Deuterium Engine. QH-8LX(j) cannibalizes Ovr. Pulse Rifle to repair Ovr. Pulse Rifle. Map ----- +----------------------------------------------------+ | | | | | ?????????????????????????????????????????????????? | | ?????????????????????????????????????????????????? | | ?????????????????????????????????????????????????? | | ?????????????????????????????????????????????????? | | ?????????????????????????????????????????????????? | | ?????????????????????????????????????????????????? | | ?????????????????????????????????????????????????? | | ?????????????????????????????????????????????????? | | ?????????????????????????????????????????????????? | | ?????????????????????????????????????????????????? | | ?????????????????????????????????????????????????? | | ????????????????????????????????#####????????????? | | ????????????????????????????????#"""#????????????? | | ?###################???####?????#" "#????????????? | | #"""##"""##""|##"""#??## ##????# < #????????????? | | #"" ##""!##"" ##! "#### =###### ##???????????? | | #"" = *! #???????????? | | # = [= #???????????? | | ####################### E[###########???????????? | | ??????????????????????## !##?????????????????????? | | ??###################### j#??????????????????????? | | ??#""""""""## ## !#??????????????????????? | | ??#" && " "## ##[j#?????????##???????????? | | ??#" "## ## @#????????? #???????????? | | ??#"" ""## ##!%#???????## #???????????? | | ??#" "## [ ] ##**#?????### ????????????? | | ??#"" ""## #;!=#?????#X###????????????? | | ??#" "###### ######%!#?????### ####?????????? | | ??#"" ""#?###X #####;!*#?????# #?????????? | | ??# #?# ###[ ####### ######?????????? | | ??# #?# #?# # #?????????? | | ??# #?# #?# # #?????????? | | ??#### #####?##### ###?# !"# ###########?????????? | | ###### ########### #####*=##!##??????????????????? | | """""" """"""""""" """""j%""%"#??????????????????? | | [!![%!"#??????????????????? | | =!*=="#??????????????????? | | !["###########????????? | | "## !!!!! #????????? | | #????????? | | """""""""""""""""""""""" "## #????????? | | """"""""""""""""""""""" * "## #????????? | | #### ################""!%= "## !!!!! #????????? | | ##????????#""/=* "###########????????? | | X"#????????#"" = "## !!=**#??????????? | | "" "" ##????????#"" "##*![%!!#??????????? | | "" "" X"#??????###"" ="=![]]=#??????????? | | " "###"####!#""! =!#/*=|###??????????? | +----------------------------------------------------+ Best States ------------- Heat Dissipation 25 Energy Generation 10 Energy Capacity 250 Matter Stores 300 Matter Capacity 300 Sight Range 16 Terrain Scan Density 10 Evasion (%) 55 Item Schematics ----------------- None Robot Schematics ------------------ None Fabricated ------------ Nothing Repaired ---------- Nothing Studied --------- None Alien Tech Used ----------------- None Achievements -------------- Bob, First Of His Name Civilization 2243 Link The Feds Strength In Numbers You Again Challenges ------------ None Game ------ Seed NuclearNetworkReconstructor Manual? 0 Play Time 00:37:29 Cumulative 6.4 hours Start 2025.12.01 @ 14:56:08 End 2025.12.01 @ 15:47:04 Sessions 1 Manual Loads 0 Difficulty Rogue Special Mode None Game No. 9 Rogue 9 Adventurer 0 Explorer 0 Win Type - Total 0 Types 0/0/0/0/0/0/0/0/0/0 Lore% 14 Gallery% 7 Achievement% 9 Wizard Run 0 Options --------- Layout 1 ASCII 0 Keyboard 1 Movement Vi Keybinds 0 Fullscreen 1 Font 24/Smallcaps Map View 50x35 Zoom Use 0% Tactical HUD 0 Map Filters NONE Filters NONE Steam 1 RUN: 3e50d2c5-2ad6-476e-9688-e00f3774f8b7